fUST/lending_fUST_20251007
["ID","MTS","AMOUNT","RATE_DAILY","PERIOD"]
[389748045,1759824647582,-500.0,0.00019178,2]
[389748047,1759824647592,-500.0,0.00019178,2]
[389748049,1759824647601,-500.0,0.00019178,2]
[389748051,1759824647610,-500.0,0.00019178,2]
[389748053,1759824647620,-500.0,0.00019178,2]
[389748055,1759824647629,-500.0,0.00019178,2]
[389748057,1759824647639,-500.0,0.00019178,2]
[389748059,1759824647648,-500.0,0.00019178,2]
[389748061,1759824647657,-500.0,0.00019178,2]
[389748063,1759824647667,-500.0,0.00019178,2]
[389748064,1759824647676,-500.0,0.00019178,2]
[389748067,1759824647686,-500.0,0.00019178,2]
[389748068,1759824647697,-373.0353957,0.00019178,2]
[389748070,1759824647706,-151.0,0.00019178,2]
[389748072,1759824647716,-500.0,0.00019178,2]
[389748074,1759824647726,-500.0,0.00019178,2]
[389748076,1759824647735,-500.0,0.00019178,2]
[389748078,1759824647745,-500.0,0.00019178,2]
[389748080,1759824647754,-500.0,0.00019178,2]
[389748082,1759824647763,-500.0,0.00019178,2]
[389748084,1759824647772,-500.0,0.00019178,2]
[389748086,1759824647782,-500.0,0.00019178,2]
[389748088,1759824647791,-500.0,0.00019178,2]
[389748090,1759824647800,-500.0,0.00019178,2]
[389748092,1759824647809,-500.0,0.00019178,2]
[389748094,1759824647819,-500.0,0.00019178,2]
[389748096,1759824647828,-500.0,0.00019178,2]
[389748097,1759824647838,-1059.54,0.00019178,2]
[389748099,1759824647847,-500.0,0.00019178,2]
[389748101,1759824647856,-500.0,0.00019178,2]
[389748103,1759824647866,-500.0,0.00019178,2]
[389748105,1759824647875,-500.0,0.00019178,2]
[389748107,1759824647884,-500.0,0.00019178,2]
[389748109,1759824647893,-500.0,0.00019178,2]
[389748111,1759824647902,-500.0,0.00019178,2]
[389748113,1759824647911,-500.0,0.00019178,2]
[389748115,1759824647920,-500.0,0.00019178,2]
[389748117,1759824647929,-500.0,0.00019178,2]
[389748119,1759824647939,-500.0,0.00019178,2]
[389748120,1759824647948,-516.40520658,0.00019178,2]
[389748122,1759824647957,-659.62,0.00019178,2]
[389748124,1759824647967,-500.0,0.00019178,2]
[389748126,1759824647978,-615.54,0.00019178,2]
[389748128,1759824647987,-500.0,0.00019178,2]
[389748130,1759824647997,-500.0,0.00019178,2]
[389748132,1759824648006,-500.0,0.00019178,2]
[389748134,1759824648016,-500.0,0.00019178,2]
[389748136,1759824648025,-500.0,0.00019178,2]
[389748138,1759824648034,-543.84,0.00019178,2]
[389748140,1759824648044,-500.0,0.00019178,2]
[389748142,1759824648053,-500.0,0.00019178,2]
[389748144,1759824648062,-500.0,0.00019178,2]
[389748145,1759824648071,-481.48591105,0.00019178,2]
[389748146,1759824648079,-344.093342,0.00019178,2]
[389748147,1759824648088,-500.0,0.00019178,2]
[389748148,1759824648097,-500.0,0.00019178,2]
[389748149,1759824648106,-500.0,0.00019178,2]
[389748150,1759824648115,-577.24,0.00019178,2]
[389748151,1759824648123,-500.0,0.00019178,2]
[389748152,1759824648132,-500.0,0.00019178,2]
[389748153,1759824648141,-500.0,0.00019178,2]
[389748154,1759824648149,-858.9,0.00019178,2]
[389748155,1759824648159,-500.0,0.00019178,2]
[389748156,1759824648167,-500.0,0.00019178,2]
[389748157,1759824648176,-500.0,0.00019178,2]
[389748158,1759824648185,-500.0,0.00019178,2]
[389748159,1759824648194,-500.0,0.00019178,2]
[389748160,1759824648202,-500.0,0.00019178,2]
[389748161,1759824648211,-500.0,0.00019178,2]
[389748162,1759824648221,-500.0,0.00019178,2]
[389748163,1759824648231,-500.0,0.00019178,2]
[389748164,1759824648240,-500.0,0.00019178,2]
[389748165,1759824648248,-500.0,0.00019178,2]
[389748166,1759824648257,-500.0,0.00019178,2]
[389748167,1759824648266,-500.0,0.00019178,2]
[389748168,1759824648275,-500.0,0.00019178,2]
[389748169,1759824648283,-151.42796026,0.00019178,2]
[389748170,1759824648292,-500.0,0.00019178,2]
[389748171,1759824648301,-567.76,0.00019178,2]
[389748172,1759824648310,-500.0,0.00019178,2]
[389748173,1759824648319,-948.6,0.00019178,2]
[389748174,1759824648327,-500.0,0.00019178,2]
[389748175,1759824648336,-500.0,0.00019178,2]
[389748176,1759824648344,-500.0,0.00019178,2]
[389748177,1759824648353,-500.0,0.00019178,2]
[389748178,1759824648362,-500.0,0.00019178,2]
[389748179,1759824648371,-500.0,0.00019178,2]
[389748180,1759824648379,-500.0,0.00019178,2]
[389748181,1759824648388,-500.0,0.00019178,2]
[389748182,1759824648398,-500.0,0.00019178,2]
[389748183,1759824648407,-500.0,0.00019178,2]
[389748184,1759824648415,-500.0,0.00019178,2]
[389748185,1759824648425,-500.0,0.00019178,2]
[389748186,1759824648434,-500.0,0.00019178,2]
[389748187,1759824648443,-421.09239904,0.00019178,2]
[389748189,1759824648453,-154.490387,0.00019178,2]
[389748191,1759824648463,-500.0,0.00019178,2]
[389748192,1759824648472,-500.0,0.00019178,2]
[389748193,1759824648482,-500.0,0.00019178,2]
[389748195,1759824648491,-237.18951318,0.00019178,2]
[389748197,1759824648500,-748.02285832,0.00019178,2]
[389748199,1759824673761,3000.0,0.00030576,120]
[389748200,1759824692581,602.0,0.00028767,120]
[389748201,1759824697640,550.0,0.000273,120]
[389748202,1759824716777,924.35812692,0.00030576,60]
[389748203,1759824723229,3041.87272307,0.00030576,120]
[389748204,1759824730894,3000.0,0.00030576,120]
[389748205,1759824731898,602.0,0.00028767,120]
[389748206,1759824751471,154.0,0.00024,120]
[389748207,1759824752832,154.0,0.000257,120]
[389748208,1759824754423,154.0,0.000274,120]
[389748209,1759824768229,731.0,0.0002191,120]
[389748210,1759824768259,749.0,0.0002191,120]
[389748211,1759824768684,731.0,0.000219,120]
[389748212,1759824768712,749.0,0.000219,120]
[389748213,1759824769123,749.0,0.0002189,120]
[389748214,1759824769151,731.0,0.0002189,120]
[389748215,1759824769577,749.0,0.00023,120]
[389748216,1759824769617,731.0,0.00023,120]
[389748217,1759824770491,749.0,0.0002299,120]
[389748218,1759824770520,731.0,0.0002299,120]
[389748219,1759824770896,749.0,0.0002298,120]
[389748220,1759824770929,731.0,0.0002298,120]
[389748221,1759824771342,749.0,0.000238,120]
[389748222,1759824771372,731.0,0.000238,120]
[389748223,1759824771816,731.0,0.0002379,120]
[389748224,1759824771847,749.0,0.0002379,120]
[389748225,1759824772314,749.0,0.0002479,120]
[389748226,1759824772603,731.0,0.0002479,120]
[389748227,1759824772758,756.9,0.0002478,120]
[389748228,1759824773054,739.09,0.0002478,120]
[389748229,1759824781772,158.74009239,0.00030576,120]
[389748230,1759824782769,158.74009235,0.00030576,120]
[389748231,1759824783789,158.74009235,0.00030576,120]
[389748232,1759824784794,158.74009235,0.00030576,120]
[389748233,1759824785789,158.74009235,0.00030576,120]
[389748234,1759824786766,158.74009235,0.00030576,120]
[389748235,1759824787763,158.74009235,0.00030576,120]
[389748236,1759824788762,158.74009235,0.00030576,120]
[389748237,1759824789757,158.74009235,0.00030576,120]
[389748238,1759824791172,158.74009235,0.00030576,120]
[389748239,1759824823878,1875798.8048569,0.00025,30]
[389748254,1759824870783,200.0,0.00028705,120]
[389748256,1759824889748,-211.06989017,0.00018268,3]
[389748257,1759824889773,-150.0,0.00018312,2]
[389748258,1759824889797,-1000.0,0.00018356,2]
[389748261,1759824903254,1990.25893305,0.00030576,120]
[389748262,1759824903285,160.0,0.00028767,120]
[389748263,1759824903319,1318.23706201,0.00028767,120]
[389748264,1759824903358,1013.23249211,0.00030576,60]
[389748265,1759824903387,3160.11790865,0.00028767,120]
[389748266,1759824903416,819.5793842,0.00028767,120]
[389748270,1759824926865,438.93010983,0.00018356,2]
[389748271,1759824926889,1800.0,0.00018356,2]
[389748272,1759824926913,1800.0,0.00018356,2]
[389748273,1759824926937,1306.06989017,0.00018356,2]
[389748275,1759824930897,200.0,0.00027829,120]
[389748277,1759824937970,493.93010983,0.00017883,2]
[389748278,1759824937996,15.13178317,0.00017883,2]
[389748286,1759824990827,200.0,0.00028412,120]
[389748289,1759825014927,2796.06,0.00030548,60]
[389748290,1759825018242,400.0,0.0002876,120]
[389748294,1759825046851,700.0,0.000284,120]
[389748295,1759825050795,200.0,0.00027567,120]
[389748306,1759825140395,918.22616926,0.00018278,2]
[389748308,1759825165871,738.0,0.000284,120]
[389748312,1759825300350,151.32896285,0.00018278,2]
[389748313,1759825396082,715.31308472,0.00018356,2]
[389748318,1759825470861,200.0,0.0002796,120]
[389748324,1759825544732,500.0,0.00028767,120]
[389748326,1759825567360,500.0,0.00028767,120]
[389748329,1759825601878,467.56971089,0.00028767,120]
[389748331,1759825648747,3212.0,0.00030508,60]
[389748332,1759825650780,200.0,0.00028402,120]
[389748333,1759825652748,1316.23210192,0.00030508,120]
[389748334,1759825665301,1781.39377212,0.00030508,120]
[389748335,1759825667058,282.06770424,0.00030508,120]
[389748338,1759825684706,2999.999999,0.00028,120]
[389748339,1759825689269,868.67753029,0.00030508,120]
[389748340,1759825693803,2572.47242104,0.00030508,120]
[389748341,1759825695116,1444.41245791,0.00030508,120]
[389748342,1759825695746,988.0689235,0.00030508,120]
[389748343,1759825702279,240.19646094,0.00030508,60]
[389748344,1759825703711,1457.77464694,0.00030508,120]
[389748345,1759825704176,938.24410953,0.00030508,120]
[389748346,1759825705162,2199.02454237,0.00030508,120]
[389748347,1759825707509,999.99999,0.00030508,120]
[389748348,1759825709907,911.76022062,0.00030508,60]
[389748349,1759825711215,3250.11800653,0.00030508,120]
[389748350,1759825711825,865.40562721,0.00030508,120]
[389748351,1759825712779,898.25448607,0.00030508,120]
[389748352,1759825712820,707.56942476,0.00030508,120]
[389748353,1759825713963,240.82074905,0.00030508,120]
[389748354,1759825714318,337.99084762,0.00030508,90]
[389748355,1759825715466,248.05080483,0.00030508,120]
[389748356,1759825716323,2344.23158889,0.00030508,60]
[389748357,1759825716356,2912.70066407,0.00030508,120]
[389748358,1759825716745,2000.0,0.00030508,120]
[389748359,1759825717210,346.74340574,0.00030508,120]
[389748360,1759825717415,1127.79368467,0.00030508,120]
[389748361,1759825718712,2665.21281886,0.00030508,120]
[389748362,1759825719019,567.90208583,0.00030508,120]
[389748363,1759825719116,1790.65124931,0.00030508,60]
[389748364,1759825719382,156.19302376,0.00030508,120]
[389748365,1759825719705,365.39561842,0.00030508,120]
[389748366,1759825720188,1032.10554064,0.00030508,120]
[389748367,1759825720399,1468.53028755,0.00030508,120]
[389748368,1759825720499,904.09150639,0.00030508,120]
[389748369,1759825720713,1122.21599114,0.00030508,120]
[389748370,1759825720850,1539.28345035,0.00030508,120]
[389748371,1759825721194,1601.67374943,0.00030508,120]
[389748372,1759825721222,1888.31261608,0.00030508,60]
[389748373,1759825721795,436.90284444,0.00030508,120]
[389748374,1759825722016,221.14332938,0.00030508,120]
[389748375,1759825723050,3113.38178924,0.00030508,120]
[389748376,1759825723413,716.40492744,0.00030508,120]
[389748377,1759825723460,324.65744603,0.00030508,120]
[389748378,1759825724388,557.92211528,0.00030508,120]
[389748379,1759825724539,1268.2543086,0.00030508,60]
[389748380,1759825724743,487.36516565,0.00030508,60]
[389748381,1759825725095,166.49977869,0.00030508,120]
[389748382,1759825725525,503.76512,0.00030508,120]
[389748383,1759825725610,545.20001213,0.00030508,120]
[389748384,1759825726098,1203.45687087,0.00030508,120]
[389748385,1759825726183,2032.54236013,0.00030508,120]
[389748386,1759825726216,1034.42590947,0.00030508,120]
[389748387,1759825726536,163.86538194,0.00030508,120]
[389748388,1759825726564,224.70522895,0.00030508,120]
[389748389,1759825726954,2558.63893483,0.00030508,120]
[389748390,1759825727077,1168.52722455,0.00027,120]
[389748391,1759825727820,1912.0,0.00030508,120]
[389748392,1759825728194,1345.22065742,0.00030508,120]
[389748393,1759825728251,3248.18224644,0.00030508,120]
[389748394,1759825728515,247.47210426,0.00030508,120]
[389748395,1759825728837,352.53283115,0.00030508,120]
[389748396,1759825728866,1793.06372768,0.00030508,120]
[389748397,1759825729373,3292.73802745,0.00030508,120]
[389748398,1759825729508,1017.17989104,0.00030508,120]
[389748399,1759825729628,431.74990837,0.00030508,120]
[389748401,1759825730114,1009.53551417,0.00030508,60]
[389748402,1759825730162,190.31904889,0.00030508,120]
[389748403,1759825730706,295.53992623,0.00030508,120]
[389748404,1759825730754,458.0,0.00030508,120]
[389748486,1759825837908,-612.1507795,0.00018278,2]
[389748487,1759825837918,-150.0,0.00018298,2]
[389748488,1759825837927,-284.68691528,0.00018356,2]
[389748489,1759825837936,-179.31,0.00018368,3]
[389748490,1759825837945,-537.95,0.00018368,3]
[389748491,1759825837954,-300.0,0.00018376,2]
[389748492,1759825837963,-500.0,0.00018377,2]
[389748493,1759825837974,-500.0,0.00018377,2]
[389748494,1759825837984,-401.79566562,0.00018377,2]
[389748495,1759825837993,-500.0,0.00018377,2]
[389748496,1759825838002,-500.0,0.00018377,2]
[389748498,1759825838012,-452.05310407,0.00018377,2]
[389748499,1759825838025,-493.13372574,0.00018377,2]
[389748501,1759825838034,-2371.78441758,0.00018378,2]
[389748503,1759825838046,-1617.4791997,0.00018378,2]
[389748505,1759825838057,-886.76490991,0.00018378,2]
[389748569,1759825840082,-6175.59992406,0.00018378,2]
[389748570,1759825840204,-9948.88868025,0.00018378,2]
[389748591,1759825843304,-16021.83501796,0.00018378,2]
[389748592,1759825843315,-6604.02379023,0.00018378,2]
[389748753,1759825846074,-1334.28173235,0.00018378,2]
[389748775,1759825846290,-18892.64124262,0.00018378,2]
[389748777,1759825846301,-22470.62593947,0.00018378,2]
[389748839,1759825890745,200.0,0.00028071,120]
[389748842,1759825939377,165.0,0.000287,120]
[389748843,1759825951622,200.0,0.00028588,120]
[389748845,1759826070771,200.0,0.00027394,120]
[389748847,1759826130749,200.0,0.00028526,120]
[389748852,1759826205977,924.2,0.00028767,120]
[389748854,1759826250787,200.0,0.00028025,120]
[389748857,1759826365427,3000.0,0.00030509,120]
[389748862,1759826609285,5463.78615273,0.00030509,120]
[389748863,1759826669007,199.87809039,0.00030509,60]
[389748864,1759826834100,-800.9702404,0.00017263,2]
[389748865,1759826834120,-150.0,0.00017681,2]
[389748866,1759826834140,-151.0,0.000181,2]
[389748867,1759826834159,-4157.45429765,0.000182,2]
[389748868,1759826834179,-162.29049363,0.000182,2]
[389748869,1759826834199,-300.0,0.00018267,2]
[389748870,1759826834218,-259.47,0.00018268,3]
[389748871,1759826834237,-778.46,0.00018268,3]
[389748872,1759826834257,-361.55290888,0.00018277,2]
[389748873,1759826834276,-500.0,0.00018277,2]
[389748874,1759826834298,-500.0,0.00018277,2]
[389748875,1759826834319,-53.52586068,0.00018277,2]
[389748877,1759826872238,524.779564,0.00013699,2]
[389748993,1759827032394,-475.99757734,0.00018134,2]
[389749014,1759827032557,-151.13991119,0.00018134,2]
[389749016,1759827032566,-162.29049357,0.000182,2]
[389749018,1759827032575,-1750.77947918,0.000182,2]
[389749055,1759827038139,-1020.85671926,0.000182,2]
[389749056,1759827038148,-300.0,0.00018277,2]
[389749057,1759827038158,-144.27887074,0.00018277,2]
[389749058,1759827038169,-500.0,0.00018278,2]
[389749060,1759827038179,-1817.84056043,0.00018278,2]
[389749063,1759827038193,-18192.67165077,0.00018278,2]
[389749069,1759827038249,-349989.4877888,0.00018278,2]
[389749071,1759827038259,-151.0,0.000183,2]
[389749073,1759827038268,-1324.15595828,0.00018314,2]
[389749075,1759827038278,-1000.0,0.00018356,2]
[389749076,1759827038287,-36375.66630666,0.00018369,2]
[389749077,1759827038296,-5888.0,0.00018369,2]
[389749078,1759827038305,-11278.853469,0.00018468,2]
[389749080,1759827038315,-2975.3641965,0.00018468,2]
[389749083,1759827038324,-165.0,0.00018481,2]
[389749085,1759827038334,-151.0,0.000185,2]
[389749087,1759827038343,-500.0,0.00018552,2]
[389749089,1759827038353,-168.0,0.00018604,2]
[389749091,1759827038362,-1000.0,0.0001863,2]
[389749092,1759827038371,-151.0,0.000187,2]
[389749093,1759827038381,-300.0,0.00018745,2]
[389749094,1759827038390,-300.0,0.00018745,2]
[389749095,1759827038399,-300.0,0.00018745,2]
[389749096,1759827038409,-300.0,0.00018745,2]
[389749097,1759827038419,-300.0,0.00018745,2]
[389749098,1759827038428,-300.0,0.00018745,2]
[389749099,1759827038440,-300.0,0.00018745,2]
[389749100,1759827038449,-300.0,0.00018745,2]
[389749101,1759827038459,-300.0,0.00018745,2]
[389749102,1759827038469,-300.0,0.00018745,2]
[389749103,1759827038479,-300.0,0.00018745,2]
[389749104,1759827038488,-300.0,0.00018745,2]
[389749105,1759827038498,-300.0,0.00018745,2]
[389749106,1759827038508,-300.0,0.00018745,2]
[389749107,1759827038520,-300.0,0.00018745,2]
[389749108,1759827038530,-168.0,0.00018787,2]
[389749109,1759827038540,-5888.0,0.00018788,2]
[389749110,1759827038549,-500.0,0.00018826,2]
[389749111,1759827038559,-151.0,0.000189,2]
[389749112,1759827038568,-168.0,0.00018902,2]
[389749113,1759827038578,-1000.0,0.00018904,2]
[389749114,1759827038587,-2771.63619843,0.00018913,2]
[389749115,1759827038597,-160.0,0.00018948,3]
[389749116,1759827038607,-630.0,0.00018997,2]
[389749117,1759827038616,-2158.0,0.00018997,2]
[389749118,1759827038626,-168.0,0.00019033,2]
[389749119,1759827038636,-151.0,0.00019089,2]
[389749120,1759827038645,-151.57643874,0.00019089,2]
[389749121,1759827038655,-153.39379478,0.00019089,2]
[389749122,1759827038665,-151.0,0.00019089,2]
[389749123,1759827038675,-151.0,0.00019089,2]
[389749124,1759827038684,-151.0,0.00019089,2]
[389749125,1759827038694,-151.0,0.00019089,2]
[389749126,1759827038703,-151.0,0.00019089,2]
[389749127,1759827038713,-151.0,0.00019089,2]
[389749128,1759827038723,-151.0,0.00019089,2]
[389749129,1759827038733,-151.0,0.00019089,2]
[389749130,1759827038743,-151.0,0.00019089,2]
[389749131,1759827038752,-168.99728248,0.00019089,2]
[389749132,1759827038762,-230.01271824,0.00019089,2]
[389749133,1759827038772,-151.0,0.00019089,2]
[389749134,1759827038781,-500.0,0.00019089,2]
[389749135,1759827038791,-500.0,0.000191,2]
[389749136,1759827038801,-400.0,0.000191,2]
[389749137,1759827038811,-151.0,0.000191,2]
[389749138,1759827038820,-151.0,0.000191,2]
[389749139,1759827038831,-168.0,0.0001917,2]
[389749140,1759827038840,-151.0,0.0001917,2]
[389749141,1759827038849,-151.0,0.0001917,2]
[389749142,1759827038859,-257.23413138,0.0001917,2]
[389749143,1759827038869,-151.0,0.0001917,2]
[389749144,1759827038878,-855.0,0.0001917,2]
[389749145,1759827038888,-151.0,0.0001917,2]
[389749146,1759827038897,-151.0,0.0001917,2]
[389749147,1759827038907,-189.6808087,0.0001917,2]
[389749148,1759827038917,-151.0,0.0001917,2]
[389749149,1759827038926,-151.1316672,0.0001917,2]
[389749150,1759827038936,-151.0,0.0001917,2]
[389749151,1759827038947,-151.20526058,0.0001917,2]
[389749152,1759827038956,-501.03686346,0.00019173,2]
[389749153,1759827038967,-500.69316921,0.00019173,2]
[389749154,1759827038977,-500.60335624,0.00019173,2]
[389749155,1759827038987,-500.0,0.00019173,2]
[389749156,1759827038996,-375.09147052,0.00019173,2]
[389749157,1759827039007,-500.0,0.00019173,2]
[389749158,1759827039017,-500.90537525,0.00019173,2]
[389749159,1759827039027,-500.0,0.00019173,2]
[389749160,1759827039038,-500.59789819,0.00019173,2]
[389749161,1759827039047,-500.93884573,0.00019173,2]
[389749162,1759827039057,-201.19665946,0.00019173,2]
[389749163,1759827039067,-500.0,0.00019173,2]
[389749164,1759827039076,-502.06029178,0.00019173,2]
[389749165,1759827039086,-200.20542948,0.00019173,2]
[389749166,1759827039096,-200.32561186,0.00019173,2]
[389749167,1759827039105,-453.10859783,0.00019173,2]
[389749168,1759827039115,-502.87408958,0.00019173,2]
[389749169,1759827039124,-500.24534212,0.00019173,2]
[389749170,1759827039134,-165.15738971,0.00019173,2]
[389749171,1759827039143,-500.0,0.00019173,2]
[389749172,1759827039152,-500.24065566,0.00019173,2]
[389749173,1759827039161,-500.0,0.00019173,2]
[389749174,1759827039172,-500.0,0.00019173,2]
[389749175,1759827039181,-500.0,0.00019173,2]
[389749176,1759827039191,-500.53852983,0.00019173,2]
[389749177,1759827039200,-500.0,0.00019173,2]
[389749178,1759827039210,-342.34883664,0.00019173,2]
[389749179,1759827039221,-159.63927334,0.00019173,2]
[389749180,1759827039231,-500.0,0.00019173,2]
[389749181,1759827039240,-500.86608413,0.00019173,2]
[389749182,1759827039250,-500.0,0.00019173,2]
[389749183,1759827039260,-500.0,0.00019173,2]
[389749184,1759827039270,-500.0,0.00019173,2]
[389749185,1759827039280,-500.4367729,0.00019173,2]
[389749186,1759827039289,-501.03087857,0.00019173,2]
[389749187,1759827039299,-500.0,0.00019173,2]
[389749188,1759827039309,-500.0,0.00019173,2]
[389749189,1759827039319,-500.0,0.00019173,2]
[389749190,1759827039328,-500.91593206,0.00019173,2]
[389749191,1759827039338,-500.0,0.00019173,2]
[389749192,1759827039347,-261.39363659,0.00019173,2]
[389749193,1759827039357,-500.0,0.00019173,2]
[389749194,1759827039365,-162.537,0.00019173,2]
[389749195,1759827039375,-500.0,0.00019178,2]
[389749196,1759827039385,-500.0,0.00019178,2]
[389749197,1759827039394,-500.0,0.00019178,2]
[389749198,1759827039405,-500.0,0.00019178,2]
[389749199,1759827039414,-1256.5,0.00019178,2]
[389749200,1759827039424,-500.0,0.00019178,2]
[389749201,1759827039438,-500.0,0.00019178,2]
[389749202,1759827039451,-500.0,0.00019178,2]
[389749203,1759827039460,-377.679777,0.00019178,2]
[389749204,1759827039471,-500.0,0.00019178,2]
[389749205,1759827039482,-500.0,0.00019178,2]
[389749206,1759827039491,-500.0,0.00019178,2]
[389749207,1759827039500,-500.0,0.00019178,2]
[389749208,1759827039512,-388.01129274,0.00019178,2]
[389749209,1759827039522,-500.0,0.00019178,2]
[389749210,1759827039532,-500.0,0.00019178,2]
[389749211,1759827039541,-500.0,0.00019178,2]
[389749212,1759827039552,-500.0,0.00019178,2]
[389749213,1759827039562,-500.0,0.00019178,2]
[389749214,1759827039571,-500.0,0.00019178,2]
[389749215,1759827039580,-500.0,0.00019178,2]
[389749216,1759827039590,-500.0,0.00019178,2]
[389749217,1759827039599,-500.0,0.00019178,2]
[389749218,1759827039608,-502.65,0.00019178,2]
[389749219,1759827039618,-500.0,0.00019178,2]
[389749220,1759827039627,-500.0,0.00019178,2]
[389749221,1759827039636,-500.0,0.00019178,2]
[389749222,1759827039645,-589.81018776,0.00019178,2]
[389749223,1759827039654,-500.0,0.00019178,2]
[389749224,1759827039664,-500.0,0.00019178,2]
[389749226,1759827039673,-500.0,0.00019178,2]
[389749227,1759827039683,-500.0,0.00019178,2]
[389749228,1759827039692,-500.0,0.00019178,2]
[389749229,1759827039701,-391.21201223,0.00019178,2]
[389749230,1759827039710,-361.83309881,0.00019178,2]
[389749231,1759827039720,-500.0,0.00019178,2]
[389749232,1759827039730,-500.0,0.00019178,2]
[389749233,1759827039739,-500.0,0.00019178,2]
[389749234,1759827039749,-500.0,0.00019178,2]
[389749235,1759827039759,-500.0,0.00019178,2]
[389749236,1759827039769,-500.0,0.00019178,2]
[389749238,1759827039779,-500.0,0.00019178,2]
[389749240,1759827039788,-500.0,0.00019178,2]
[389749242,1759827039797,-634.89,0.00019178,2]
[389749243,1759827039806,-500.0,0.00019178,2]
[389749244,1759827039816,-500.0,0.00019178,2]
[389749245,1759827039825,-500.0,0.00019178,2]
[389749246,1759827039834,-500.0,0.00019178,2]
[389749247,1759827039843,-500.0,0.00019178,2]
[389749249,1759827039853,-500.0,0.00019178,2]
[389749250,1759827039862,-500.0,0.00019178,2]
[389749251,1759827039872,-500.0,0.00019178,2]
[389749252,1759827039882,-500.0,0.00019178,2]
[389749253,1759827039891,-500.0,0.00019178,2]
[389749254,1759827039901,-500.0,0.00019178,2]
[389749255,1759827039910,-500.65442458,0.00019178,2]
[389749256,1759827039920,-500.0,0.00019178,2]
[389749257,1759827039929,-501.28909675,0.00019178,2]
[389749259,1759827039939,-500.0,0.00019178,2]
[389749260,1759827039948,-500.0,0.00019178,2]
[389749261,1759827039957,-500.0,0.00019178,2]
[389749262,1759827039968,-500.0,0.00019178,2]
[389749263,1759827039978,-500.0,0.00019178,2]
[389749264,1759827039987,-500.0,0.00019178,2]
[389749265,1759827039996,-500.0,0.00019178,2]
[389749266,1759827040006,-500.0,0.00019178,2]
[389749267,1759827040016,-394.44028713,0.00019178,2]
[389749268,1759827040026,-500.0,0.00019178,2]
[389749269,1759827040036,-591.0825963,0.00019178,2]
[389749270,1759827040046,-500.0,0.00019178,2]
[389749271,1759827040057,-500.0,0.00019178,2]
[389749272,1759827040066,-461.06167971,0.00019178,2]
[389749273,1759827040075,-500.0,0.00019178,2]
[389749274,1759827040084,-500.0,0.00019178,2]
[389749276,1759827040094,-482.32329518,0.00019178,2]
[389749278,1759827040103,-500.0,0.00019178,2]
[389749280,1759827040112,-500.0,0.00019178,2]
[389749281,1759827040121,-424.21411836,0.00019178,2]
[389749282,1759827040131,-500.0,0.00019178,2]
[389749283,1759827040140,-500.0,0.00019178,2]
[389749285,1759827040149,-529.20798191,0.00019178,2]
[389749287,1759827040159,-500.0,0.00019178,2]
[389749289,1759827040168,-500.0,0.00019178,2]
[389749291,1759827040177,-500.0,0.00019178,2]
[389749292,1759827040186,-500.0,0.00019178,2]